lending/lending_fUSD_20250808
["ID","MTS","AMOUNT","RATE_DAILY","PERIOD"]
[377906793,1754613039356,-400.0,0.00019178,2]
[377906794,1754613039366,-812.28,0.00019178,2]
[377906795,1754613039376,-927.28,0.00019178,2]
[377906796,1754613039386,-400.0,0.00019178,2]
[377906797,1754613039396,-400.0,0.00019178,2]
[377906798,1754613039406,-400.0,0.00019178,2]
[377906799,1754613039415,-953.96,0.00019178,2]
[377906800,1754613039425,-524.42367307,0.00019178,2]
[377906801,1754613039434,-400.0,0.00019178,2]
[377906802,1754613039445,-400.0,0.00019178,2]
[377906803,1754613039455,-861.71,0.00019178,2]
[377906804,1754613039464,-580.75,0.00019178,2]
[377906805,1754613039474,-802.6,0.00019178,2]
[377906806,1754613039483,-400.0,0.00019178,2]
[377906807,1754613039493,-400.0,0.00019178,2]
[377906808,1754613039503,-400.0,0.00019178,2]
[377906809,1754613039513,-400.0,0.00019178,2]
[377906810,1754613039523,-400.0,0.00019178,2]
[377906811,1754613039535,-400.0,0.00019178,2]
[377906812,1754613039544,-571.8,0.00019178,2]
[377906813,1754613039555,-400.0,0.00019178,2]
[377906814,1754613039565,-400.0,0.00019178,2]
[377906815,1754613039575,-1017.49,0.00019178,2]
[377906816,1754613039586,-400.0,0.00019178,2]
[377906817,1754613039596,-400.0,0.00019178,2]
[377906818,1754613039607,-480.71,0.00019178,2]
[377906819,1754613039617,-400.0,0.00019178,2]
[377906820,1754613039626,-400.0,0.00019178,2]
[377906821,1754613039637,-400.0,0.00019178,2]
[377906822,1754613039647,-403.89,0.00019178,2]
[377906823,1754613039657,-500.40347591,0.00019178,2]
[377906824,1754613039667,-400.0,0.00019178,2]
[377906825,1754613039677,-400.0,0.00019178,2]
[377906826,1754613039687,-1379.73,0.00019178,2]
[377906827,1754613039697,-400.0,0.00019178,2]
[377906828,1754613039707,-400.0,0.00019178,2]
[377906829,1754613039717,-1290.36,0.00019178,2]
[377906830,1754613039728,-400.0,0.00019178,2]
[377906832,1754613039737,-400.0,0.00019178,2]
[377906834,1754613039748,-400.0,0.00019178,2]
[377906835,1754613039758,-400.0,0.00019178,2]
[377906836,1754613039768,-400.0,0.00019178,2]
[377906837,1754613039778,-400.0,0.00019178,2]
[377906838,1754613039787,-560.12,0.00019178,2]
[377906839,1754613039798,-1326.45,0.00019178,2]
[377906840,1754613039810,-1037.58,0.00019178,2]
[377906841,1754613039821,-551.88,0.00019178,2]
[377906842,1754613039835,-400.0,0.00019178,2]
[377906843,1754613039846,-400.0,0.00019178,2]
[377906844,1754613039856,-570.53,0.00019178,2]
[377906845,1754613039867,-624.79,0.00019178,2]
[377906846,1754613039878,-459.48,0.00019178,2]
[377906847,1754613039888,-912.6,0.00019178,2]
[377906848,1754613039899,-453.86,0.00019178,2]
[377906849,1754613039910,-845.43,0.00019178,2]
[377906850,1754613039921,-610.33,0.00019178,2]
[377906852,1754613039931,-400.0,0.00019178,2]
[377906853,1754613039941,-1543.29,0.00019178,2]
[377906855,1754613039950,-400.0,0.00019178,2]
[377906857,1754613039960,-802.15,0.00019178,2]
[377906859,1754613039970,-405.06,0.00019178,2]
[377906861,1754613039980,-400.0,0.00019178,2]
[377906863,1754613039990,-400.0,0.00019178,2]
[377906865,1754613040000,-1052.0,0.00019178,2]
[377906867,1754613040011,-1340.86,0.00019178,2]
[377906869,1754613040020,-400.0,0.00019178,2]
[377906871,1754613040030,-400.0,0.00019178,2]
[377906872,1754613040040,-950.22,0.00019178,2]
[377906873,1754613040051,-903.46,0.00019178,2]
[377906874,1754613040064,-1188.56,0.00019178,2]
[377906875,1754613040074,-400.0,0.00019178,2]
[377906876,1754613040084,-400.0,0.00019178,2]
[377906877,1754613040094,-511.85,0.00019178,2]
[377906878,1754613040103,-400.0,0.00019178,2]
[377906879,1754613040113,-400.0,0.00019178,2]
[377906880,1754613040123,-502.43,0.00019178,2]
[377906881,1754613040134,-469.08,0.00019178,2]
[377906882,1754613040144,-538.68,0.00019178,2]
[377906883,1754613040153,-431.81,0.00019178,2]
[377906884,1754613040163,-400.0,0.00019178,2]
[377906885,1754613040173,-415.03,0.00019178,2]
[377906886,1754613040182,-400.0,0.00019178,2]
[377906887,1754613040192,-400.0,0.00019178,2]
[377906888,1754613040202,-400.0,0.00019178,2]
[377906889,1754613040212,-400.0,0.00019178,2]
[377906890,1754613040222,-400.0,0.00019178,2]
[377906891,1754613040231,-400.0,0.00019178,2]
[377906892,1754613040241,-613.1,0.00019178,2]
[377906893,1754613040251,-400.0,0.00019178,2]
[377906894,1754613040260,-448.34,0.00019178,2]
[377906895,1754613040270,-400.0,0.00019178,2]
[377906896,1754613040280,-652.84,0.00019178,2]
[377906897,1754613040290,-408.61747628,0.00019178,2]
[377906898,1754613040300,-400.0,0.00019178,2]
[377906899,1754613040313,-400.0,0.00019178,2]
[377906900,1754613040324,-400.0,0.00019178,2]
[377906901,1754613040334,-400.0,0.00019178,2]
[377906902,1754613040345,-606.31,0.00019178,2]
[377906903,1754613040356,-400.0,0.00019178,2]
[377906904,1754613040367,-1054.59,0.00019178,2]
[377906905,1754613040456,-468.72,0.00019178,2]
[377906906,1754613040466,-400.0,0.00019178,2]
[377906907,1754613040475,-400.0,0.00019178,2]
[377906908,1754613040485,-560.03,0.00019178,2]
[377906909,1754613040495,-400.0,0.00019178,2]
[377906910,1754613040504,-400.0,0.00019178,2]
[377906911,1754613040513,-400.0,0.00019178,2]
[377906912,1754613040523,-1129.63,0.00019178,2]
[377906913,1754613040532,-744.37,0.00019178,2]
[377906914,1754613040542,-771.07,0.00019178,2]
[377906915,1754613040551,-400.0,0.00019178,2]
[377906916,1754613040562,-830.78,0.00019178,2]
[377906917,1754613040572,-1372.41,0.00019178,2]
[377906918,1754613040581,-400.0,0.00019178,2]
[377906919,1754613040592,-311.10745509,0.00019178,2]
[377906920,1754613040602,-643.55,0.00019178,2]
[377906921,1754613040612,-400.0,0.00019178,2]
[377906922,1754613040621,-1290.29,0.00019178,2]
[377906923,1754613040631,-400.0,0.00019178,2]
[377906924,1754613040640,-463.32,0.00019178,2]
[377906925,1754613040650,-400.0,0.00019178,2]
[377906926,1754613040659,-400.0,0.00019178,2]
[377906927,1754613040669,-400.0,0.00019178,2]
[377906928,1754613040679,-400.0,0.00019178,2]
[377906929,1754613040689,-400.0,0.00019178,2]
[377906930,1754613040699,-400.0,0.00019178,2]
[377906931,1754613040708,-792.51,0.00019178,2]
[377906932,1754613040718,-400.0,0.00019178,2]
[377906933,1754613040727,-400.0,0.00019178,2]
[377906934,1754613040737,-400.0,0.00019178,2]
[377906935,1754613040749,-720.13,0.00019178,2]
[377906936,1754613040758,-526.14,0.00019178,2]
[377906937,1754613040768,-690.34,0.00019178,2]
[377906938,1754613040778,-400.0,0.00019178,2]
[377906939,1754613040787,-167.56300439,0.00019178,2]
[377906940,1754613040797,-767.24,0.00019178,2]
[377906941,1754613040809,-784.03,0.00019178,2]
[377906942,1754613040819,-619.45,0.00019178,2]
[377906943,1754613040832,-592.46,0.00019178,2]
[377906944,1754613040842,-838.34,0.00019178,2]
[377906945,1754613040852,-400.0,0.00019178,2]
[377906946,1754613040862,-400.0,0.00019178,2]
[377906947,1754613040873,-430.58,0.00019178,2]
[377906948,1754613040883,-400.0,0.00019178,2]
[377906949,1754613040893,-400.0,0.00019178,2]
[377906950,1754613040904,-400.0,0.00019178,2]
[377906951,1754613040914,-400.0,0.00019178,2]
[377906952,1754613040925,-400.0,0.00019178,2]
[377906953,1754613040935,-400.0,0.00019178,2]
[377906954,1754613040945,-400.0,0.00019178,2]
[377906955,1754613040954,-400.0,0.00019178,2]
[377906956,1754613040964,-400.0,0.00019178,2]
[377906957,1754613040974,-400.0,0.00019178,2]
[377906958,1754613040985,-887.56,0.00019178,2]
[377906959,1754613040995,-400.0,0.00019178,2]
[377906960,1754613041005,-1398.35,0.00019178,2]
[377906961,1754613041015,-1086.27,0.00019178,2]
[377906962,1754613041025,-1137.31,0.00019178,2]
[377906963,1754613041034,-400.0,0.00019178,2]
[377906964,1754613041044,-488.07,0.00019178,2]
[377906965,1754613041055,-615.2,0.00019178,2]
[377906966,1754613041064,-400.0,0.00019178,2]
[377906967,1754613041074,-433.15,0.00019178,2]
[377906968,1754613041083,-969.77,0.00019178,2]
[377906969,1754613041093,-644.96,0.00019178,2]
[377906970,1754613041102,-711.54,0.00019178,2]
[377906971,1754613041112,-255.47958795,0.00019178,2]
[377906972,1754613041122,-745.61,0.00019178,2]
[377906973,1754613041131,-580.71,0.00019178,2]
[377906974,1754613041141,-1326.15,0.00019178,2]
[377906975,1754613041151,-400.0,0.00019178,2]
[377906976,1754613041160,-400.0,0.00019178,2]
[377906977,1754613041170,-777.93,0.00019178,2]
[377906978,1754613041180,-400.0,0.00019178,2]
[377906979,1754613041189,-533.67,0.00019178,2]
[377906980,1754613041198,-400.0,0.00019178,2]
[377906981,1754613041208,-400.0,0.00019178,2]
[377906982,1754613041217,-1146.04,0.00019178,2]
[377906983,1754613041226,-400.0,0.00019178,2]
[377906984,1754613041236,-1764.53,0.00019178,2]
[377906985,1754613041245,-1128.98,0.00019178,2]
[377906986,1754613041255,-400.0,0.00019178,2]
[377906987,1754613041264,-400.0,0.00019178,2]
[377906988,1754613041274,-400.0,0.00019178,2]
[377906989,1754613041284,-678.35,0.00019178,2]
[377906990,1754613041294,-595.92,0.00019178,2]
[377906991,1754613041306,-400.0,0.00019178,2]
[377906992,1754613041316,-1058.02,0.00019178,2]
[377906993,1754613041325,-400.0,0.00019178,2]
[377906994,1754613041335,-400.0,0.00019178,2]
[377906995,1754613041345,-171.72245702,0.00019178,2]
[377906996,1754613041355,-467.91,0.00019178,2]
[377906997,1754613041364,-460.25,0.00019178,2]
[377906998,1754613041374,-834.5,0.00019178,2]
[377906999,1754613041383,-498.62,0.00019178,2]
[377907000,1754613041394,-684.85,0.00019178,2]
[377907001,1754613041403,-519.11,0.00019178,2]
[377907002,1754613041413,-400.0,0.00019178,2]
[377907003,1754613041422,-400.0,0.00019178,2]
[377907004,1754613041432,-383.48918267,0.00019178,2]
[377907005,1754613041441,-1822.08,0.00019178,2]
[377907006,1754613041451,-400.0,0.00019178,2]
[377907007,1754613041460,-400.0,0.00019178,2]
[377907008,1754613041469,-400.0,0.00019178,2]
[377907009,1754613041479,-400.0,0.00019178,2]
[377907010,1754613041489,-400.0,0.00019178,2]
[377907011,1754613041498,-400.0,0.00019178,2]
[377907012,1754613041508,-400.0,0.00019178,2]
[377907013,1754613041517,-431.49,0.00019178,2]
[377907014,1754613041527,-400.0,0.00019178,2]
[377907015,1754613041536,-400.0,0.00019178,2]
[377907016,1754613041545,-541.11374312,0.00019178,2]
[377907017,1754613041557,-753.02,0.00019178,2]
[377907018,1754613041567,-756.51,0.00019178,2]
[377907019,1754613041576,-474.3,0.00019178,2]
[377907020,1754613041586,-400.0,0.00019178,2]
[377907021,1754613041596,-400.0,0.00019178,2]
[377907022,1754613041606,-400.0,0.00019178,2]
[377907023,1754613041616,-488.75,0.00019178,2]
[377907024,1754613041626,-530.37,0.00019178,2]
[377907025,1754613041636,-400.0,0.00019178,2]
[377907026,1754613041646,-449.14216675,0.00019178,2]
[377907027,1754613041655,-1312.14,0.00019178,2]
[377907028,1754613041665,-400.0,0.00019178,2]
[377907029,1754613041674,-664.1,0.00019178,2]
[377907030,1754613041683,-400.0,0.00019178,2]
[377907031,1754613041693,-723.03,0.00019178,2]
[377907032,1754613041702,-481.93,0.00019178,2]
[377907033,1754613041712,-400.0,0.00019178,2]
[377907034,1754613041722,-400.0,0.00019178,2]
[377907035,1754613041732,-753.14,0.00019178,2]
[377907036,1754613041743,-400.0,0.00019178,2]
[377907037,1754613041753,-1362.2,0.00019178,2]
[377907038,1754613041762,-681.29,0.00019178,2]
[377907039,1754613041772,-400.0,0.00019178,2]
[377907040,1754613041782,-400.0,0.00019178,2]
[377907041,1754613041791,-1202.92,0.00019178,2]
[377907042,1754613041801,-400.0,0.00019178,2]
[377907043,1754613041813,-400.0,0.00019178,2]
[377907044,1754613041823,-400.0,0.00019178,2]
[377907045,1754613041835,-908.09,0.00019178,2]
[377907046,1754613041845,-1356.82,0.00019178,2]
[377907047,1754613041855,-642.93,0.00019178,2]
[377907048,1754613041864,-400.0,0.00019178,2]
[377907049,1754613041875,-400.0,0.00019178,2]
[377907050,1754613041885,-558.14,0.00019178,2]
[377907051,1754613041895,-400.0,0.00019178,2]
[377907052,1754613041905,-473.3,0.00019178,2]
[377907053,1754613041915,-400.0,0.00019178,2]
[377907054,1754613041924,-600.87,0.00019178,2]
[377907055,1754613041934,-857.38,0.00019178,2]
[377907056,1754613041943,-1113.28,0.00019178,2]
[377907057,1754613041953,-766.74,0.00019178,2]
[377907058,1754613041962,-1063.89,0.00019178,2]
[377907059,1754613041971,-702.23,0.00019178,2]
[377907060,1754613041981,-593.88,0.00019178,2]
[377907061,1754613041990,-400.0,0.00019178,2]
[377907062,1754613042000,-697.81,0.00019178,2]
[377907063,1754613042010,-1070.57,0.00019178,2]
[377907064,1754613042020,-1013.85,0.00019178,2]
[377907065,1754613042030,-493.61544104,0.00019178,2]
[377907066,1754613042039,-565.06,0.00019178,2]
[377907067,1754613042048,-400.0,0.00019178,2]
[377907068,1754613042059,-835.59,0.00019178,2]
[377907069,1754613042069,-787.56,0.00019178,2]
[377907070,1754613042079,-805.74,0.00019178,2]
[377907071,1754613042088,-714.37,0.00019178,2]
[377907072,1754613042098,-400.0,0.00019178,2]
[377907073,1754613042107,-400.0,0.00019178,2]
[377907074,1754613042117,-400.0,0.00019178,2]
[377907075,1754613042127,-634.1,0.00019178,2]
[377907076,1754613042136,-446.94,0.00019178,2]
[377907077,1754613042146,-518.84,0.00019178,2]
[377907078,1754613042155,-997.03,0.00019178,2]
[377907079,1754613042165,-668.96,0.00019178,2]
[377907080,1754613042174,-400.0,0.00019178,2]
[377907081,1754613042184,-1310.15,0.00019178,2]
[377907082,1754613042193,-400.0,0.00019178,2]
[377907083,1754613042202,-823.13,0.00019178,2]
[377907084,1754613042212,-602.12,0.00019178,2]
[377907085,1754613042222,-542.82,0.00019178,2]
[377907086,1754613042231,-539.85,0.00019178,2]
[377907087,1754613042241,-1520.38,0.00019178,2]
[377907088,1754613042250,-677.81,0.00019178,2]
[377907089,1754613042260,-400.0,0.00019178,2]
[377907090,1754613042269,-400.0,0.00019178,2]
[377907091,1754613042279,-529.96568289,0.00019178,2]
[377907092,1754613042289,-1166.4,0.00019178,2]
[377907093,1754613042298,-400.0,0.00019178,2]
[377907094,1754613042309,-400.0,0.00019178,2]
[377907095,1754613042319,-440.74,0.00019178,2]
[377907096,1754613042329,-400.0,0.00019178,2]
[377907097,1754613042338,-400.0,0.00019178,2]
[377907098,1754613042347,-1322.15,0.00019178,2]
[377907099,1754613042357,-400.0,0.00019178,2]
[377907100,1754613042366,-400.0,0.00019178,2]
[377907101,1754613042376,-400.0,0.00019178,2]
[377907102,1754613042385,-400.0,0.00019178,2]
[377907103,1754613042395,-400.0,0.00019178,2]
[377907104,1754613042404,-400.0,0.00019178,2]
[377907105,1754613042414,-439.53,0.00019178,2]
[377907106,1754613042423,-1225.17,0.00019178,2]
[377907107,1754613042433,-400.0,0.00019178,2]
[377907108,1754613042443,-729.31,0.00019178,2]
[377907109,1754613042452,-1460.14,0.00019178,2]
[377907110,1754613042462,-400.0,0.00019178,2]
[377907111,1754613042472,-455.12,0.00019178,2]
[377907112,1754613042481,-400.0,0.00019178,2]
[377907113,1754613042491,-400.0,0.00019178,2]
[377907114,1754613042501,-400.0,0.00019178,2]
[377907115,1754613042510,-535.87,0.00019178,2]
[377907116,1754613042519,-965.56,0.00019178,2]
[377907117,1754613042529,-400.0,0.00019178,2]
[377907118,1754613042539,-400.0,0.00019178,2]
[377907119,1754613042549,-400.0,0.00019178,2]
[377907120,1754613042560,-400.0,0.00019178,2]
[377907121,1754613042569,-400.0,0.00019178,2]
[377907122,1754613042579,-400.0,0.00019178,2]
[377907123,1754613042590,-400.0,0.00019178,2]
[377907124,1754613042600,-1112.82,0.00019178,2]
[377907125,1754613042609,-503.18241659,0.00019178,2]
[377907126,1754613042619,-473.14,0.00019178,2]
[377907127,1754613042629,-400.0,0.00019178,2]
[377907128,1754613042640,-400.0,0.00019178,2]
[377907129,1754613042649,-400.0,0.00019178,2]
[377907130,1754613042659,-1239.98,0.00019178,2]
[377907131,1754613042668,-400.0,0.00019178,2]
[377907132,1754613042678,-592.4,0.00019178,2]
[377907133,1754613042687,-546.56,0.00019178,2]
[377907135,1754613042697,-1121.49,0.00019178,2]
[377907136,1754613042707,-400.0,0.00019178,2]
[377907138,1754613042716,-2373.45,0.00019178,2]
[377907140,1754613042726,-412.93,0.00019178,2]
[377907142,1754613042736,-1332.23,0.00019178,2]
[377907144,1754613042746,-400.0,0.00019178,2]
[377907146,1754613042755,-867.66,0.00019178,2]
[377907147,1754613042765,-400.0,0.00019178,2]
[377907148,1754613042775,-1921.83,0.00019178,2]
[377907149,1754613042785,-400.0,0.00019178,2]
[377907150,1754613042794,-400.0,0.00019178,2]
[377907151,1754613042804,-477.33,0.00019178,2]
[377907152,1754613042819,-400.0,0.00019178,2]
[377907153,1754613042830,-586.09,0.00019178,2]
[377907154,1754613042840,-633.66,0.00019178,2]
[377907155,1754613042850,-400.0,0.00019178,2]
[377907156,1754613042859,-400.0,0.00019178,2]
[377907157,1754613042871,-434.62,0.00019178,2]
[377907158,1754613042880,-400.0,0.00019178,2]
[377907159,1754613042890,-1031.22,0.00019178,2]
[377907160,1754613042899,-400.0,0.00019178,2]
[377907161,1754613042910,-591.29,0.00019178,2]
[377907162,1754613042922,-433.91,0.00019178,2]
[377907163,1754613042932,-1239.8,0.00019178,2]
[377907164,1754613042942,-419.72,0.00019178,2]
[377907165,1754613042952,-765.3,0.00019178,2]
[377907166,1754613042961,-400.0,0.00019178,2]
[377907167,1754613042971,-1091.91,0.00019178,2]
[377907168,1754613042980,-718.67,0.00019178,2]
[377907169,1754613042990,-400.0,0.00019178,2]
[377907170,1754613042999,-400.0,0.00019178,2]
[377907171,1754613043009,-798.23,0.00019178,2]
[377907172,1754613043018,-942.73,0.00019178,2]
[377907173,1754613043028,-400.0,0.00019178,2]
[377907174,1754613043038,-655.59,0.00019178,2]
[377907175,1754613043048,-549.44,0.00019178,2]
[377907176,1754613043060,-706.48,0.00019178,2]
[377907177,1754613043069,-1153.34,0.00019178,2]
[377907178,1754613043078,-549.94,0.00019178,2]
[377907179,1754613043089,-1177.75,0.00019178,2]
[377907180,1754613043099,-560.12,0.00019178,2]
[377907181,1754613043109,-400.0,0.00019178,2]
[377907182,1754613043118,-819.45,0.00019178,2]
[377907183,1754613043128,-472.38,0.00019178,2]
[377907184,1754613043138,-1000.0,0.00019178,2]
[377907185,1754613043148,-895.98,0.00019178,2]
[377907186,1754613043158,-804.91,0.00019178,2]
[377907187,1754613043168,-400.0,0.00019178,2]
[377907188,1754613043177,-400.0,0.00019178,2]
[377907193,1754613043187,-352.152162,0.00019178,2]
[377907196,1754613043197,-638.56,0.00019178,2]
[377907200,1754613043207,-352.152162,0.00019178,2]
[377907202,1754613043216,-593.81,0.00019178,2]
[377907205,1754613043226,-1258.89,0.00019178,2]
[377907207,1754613043236,-420.834801,0.00019178,2]
[377907209,1754613043246,-420.834801,0.00019178,2]
[377907213,1754613043255,-263.20669642,0.00019178,2]
[377907216,1754613043265,-400.0,0.00019178,2]
[377907220,1754613043276,-400.0,0.00019178,2]
[377907224,1754613043285,-1287.29,0.00019178,2]
[377907226,1754613043295,-400.0,0.00019178,2]
[377907228,1754613043305,-622.14,0.00019178,2]
[377907230,1754613043319,-400.0,0.00019178,2]
[377907233,1754613043329,-400.0,0.00019178,2]
[377907237,1754613043338,-424.70872341,0.00019178,2]
[377907241,1754613043348,-1105.48,0.00019178,2]
[377907246,1754613043357,-1707.57,0.00019178,2]
[377907251,1754613043367,-1063.27,0.00019178,2]
[377907257,1754613043377,-400.0,0.00019178,2]
[377907263,1754613043386,-1515.17,0.00019178,2]
[377907268,1754613043396,-1621.03,0.00019178,2]
[377907273,1754613043405,-400.0,0.00019178,2]
[377907279,1754613043415,-877.01,0.00019178,2]
[377907285,1754613043424,-400.0,0.00019178,2]
[377907292,1754613043434,-400.0,0.00019178,2]
[377907301,1754613043444,-400.0,0.00019178,2]
[377907313,1754613043454,-577.01,0.00019178,2]
[377907324,1754613043464,-400.0,0.00019178,2]
[377907330,1754613043475,-400.0,0.00019178,2]
[377907337,1754613043494,-400.0,0.00019178,2]
[377907345,1754613043504,-1622.23,0.00019178,2]
[377907355,1754613043514,-400.0,0.00019178,2]
[377907365,1754613043524,-1480.91,0.00019178,2]
[377907374,1754613043534,-400.0,0.00019178,2]
[377907385,1754613043544,-500.0,0.00019178,2]
[377907396,1754613043553,-981.54,0.00019178,2]
[377907408,1754613043566,-400.0,0.00019178,2]
[377907418,1754613043575,-246.791616,0.00019178,2]
[377907424,1754613043586,-246.791616,0.00019178,2]
[377907430,1754613043595,-400.0,0.00019178,2]
[377907437,1754613043605,-400.0,0.00019178,2]
[377907445,1754613043614,-400.0,0.00019178,2]
[377907453,1754613043623,-400.0,0.00019178,2]
[377907461,1754613043633,-1040.41,0.00019178,2]
[377907469,1754613043643,-400.0,0.00019178,2]
[377907477,1754613043652,-447.12,0.00019178,2]
[377907485,1754613043661,-1390.26,0.00019178,2]
[377907492,1754613043671,-1312.79,0.00019178,2]
[377907497,1754613043680,-400.0,0.00019178,2]
[377907505,1754613043690,-446.5,0.00019178,2]
[377907512,1754613043700,-1460.09,0.00019178,2]
[377907519,1754613043709,-400.0,0.00019178,2]
[377907525,1754613043718,-436.39,0.00019178,2]
[377907530,1754613043728,-400.0,0.00019178,2]
[377907537,1754613043738,-998.91,0.00019178,2]
[377907543,1754613043747,-400.0,0.00019178,2]
[377907549,1754613043757,-806.42,0.00019178,2]
[377907555,1754613043767,-680.12,0.00019178,2]
[377907561,1754613043777,-783.24,0.00019178,2]
[377907566,1754613043787,-400.0,0.00019178,2]
[377907569,1754613043797,-400.0,0.00019178,2]
[377907572,1754613043806,-400.0,0.00019178,2]
[377907575,1754613043820,-400.0,0.00019178,2]
[377907578,1754613043833,-471.21,0.00019178,2]
[377907581,1754613043843,-633.1,0.00019178,2]
[377907583,1754613043854,-408.97,0.00019178,2]
[377907586,1754613043863,-400.0,0.00019178,2]
[377907589,1754613043875,-400.0,0.00019178,2]
[377907592,1754613043884,-803.71,0.00019178,2]
[377907594,1754613043894,-400.0,0.00019178,2]
[377907596,1754613043903,-1211.14,0.00019178,2]
[377907598,1754613043913,-832.28,0.00019178,2]
[377907600,1754613043924,-400.0,0.00019178,2]
[377907602,1754613043934,-400.0,0.00019178,2]
[377907604,1754613043944,-400.0,0.00019178,2]
[377907606,1754613043953,-400.0,0.00019178,2]
[377907608,1754613043962,-400.0,0.00019178,2]
[377907610,1754613043972,-634.61,0.00019178,2]
[377907612,1754613043981,-400.0,0.00019178,2]
[377907614,1754613043990,-1042.43,0.00019178,2]
[377907616,1754613044000,-411.96,0.00019178,2]
[377907618,1754613044009,-400.0,0.00019178,2]
[377907620,1754613044018,-455.66,0.00019178,2]
[377907622,1754613044027,-9366.87,0.00019178,2]
[377907624,1754613044037,-707.32,0.00019178,2]
[377907626,1754613044046,-400.0,0.00019178,2]
[377907628,1754613044056,-400.0,0.00019178,2]
[377907630,1754613044067,-1513.02,0.00019178,2]
[377907632,1754613044076,-854.23,0.00019178,2]
[377907634,1754613044086,-400.0,0.00019178,2]
[377907637,1754613044095,-801.68,0.00019178,2]
[377907639,1754613044104,-484.41,0.00019178,2]
[377907641,1754613044114,-447.08,0.00019178,2]
[377907643,1754613044123,-470.74648121,0.00019178,2]
[377907645,1754613044133,-1103.08,0.00019178,2]
[377907647,1754613044142,-400.0,0.00019178,2]
[377907649,1754613044152,-400.0,0.00019178,2]
[377907650,1754613044161,-400.0,0.00019178,2]
[377907651,1754613044170,-400.0,0.00019178,2]
[377907652,1754613044180,-1785.26,0.00019178,2]
[377907654,1754613044189,-512.05,0.00019178,2]
[377907655,1754613044199,-400.0,0.00019178,2]
[377907656,1754613044208,-1209.1,0.00019178,2]
[377907657,1754613044217,-400.0,0.00019178,2]
[377907658,1754613044226,-837.98,0.00019178,2]
[377907659,1754613044236,-1338.39,0.00019178,2]
[377907660,1754613044245,-467.43,0.00019178,2]
[377907661,1754613044255,-400.0,0.00019178,2]
[377907662,1754613044265,-602.9,0.00019178,2]
[377907663,1754613044275,-588.83,0.00019178,2]
[377907664,1754613044285,-400.0,0.00019178,2]
[377907665,1754613044295,-1005.96,0.00019178,2]
[377907666,1754613044305,-1973.33,0.00019178,2]
[377907667,1754613044317,-160.0,0.00019178,2]
[377907669,1754613044327,-703.47,0.00019178,2]
[377907671,1754613044336,-969.26,0.00019178,2]
[377907673,1754613044346,-1304.83,0.00019178,2]
[377907675,1754613044355,-2027.86,0.00019178,2]
[377907677,1754613044365,-688.65,0.00019178,2]
[377907678,1754613044374,-1312.78,0.00019178,2]
[377907680,1754613044383,-400.0,0.00019178,2]